[Event "Late-Titled-Tuesday-Blitz-May-28-2024"]
[Site "Chess.com"]
[Date "2024.05.28"]
[Round "11"]
[White "ansko1999"]
[Black "FuenfgegenWilly"]
[Result "1/2-1/2"]
[WhiteElo "2615"]
[BlackElo "2494"]
[TimeControl "180+1"]
[EndTime "16:06:47 PDT"]
[Termination "Game drawn - insufficient material"]

1. Nf3 {[%clk 0:03:00.9]} 1... f5 {[%clk 0:02:57.6]} 2. d3 {[%clk 0:02:59.2]}
2... Nc6 {[%clk 0:02:57.4]} 3. e4 {[%clk 0:02:58.3]} 3... e5 {[%clk 0:02:58]} 4.
d4 {[%clk 0:02:54.3]} 4... fxe4 {[%clk 0:02:58]} 5. Nxe5 {[%clk 0:02:53.3]} 5...
Nf6 {[%clk 0:02:58.9]} 6. Bc4 {[%clk 0:02:52]} 6... d5 {[%clk 0:02:56.3]} 7. Bb5
{[%clk 0:02:52.2]} 7... Bd6 {[%clk 0:02:56.7]} 8. Nxc6 {[%clk 0:02:49.8]} 8...
bxc6 {[%clk 0:02:55]} 9. Bxc6+ {[%clk 0:02:50.7]} 9... Bd7 {[%clk 0:02:55.5]}
10. Bxd5 {[%clk 0:02:51.3]} 10... c6 {[%clk 0:02:52.3]} 11. Bb3 {[%clk
0:02:46.8]} 11... Qc7 {[%clk 0:02:51.7]} 12. Bg5 {[%clk 0:02:42.6]} 12... O-O-O
{[%clk 0:02:48.7]} 13. Nc3 {[%clk 0:02:32.8]} 13... Bxh2 {[%clk 0:02:35.3]} 14.
Qd2 {[%clk 0:02:06.1]} 14... Bg4 {[%clk 0:02:32.4]} 15. Ne2 {[%clk 0:01:24.9]}
15... e3 {[%clk 0:02:19.1]} 16. Bxe3 {[%clk 0:01:19.8]} 16... Ne4 {[%clk
0:02:14.3]} 17. Qd3 {[%clk 0:01:11.9]} 17... Bf5 {[%clk 0:02:05.8]} 18. O-O-O
{[%clk 0:00:47.5]} 18... Kb8 {[%clk 0:02:05.5]} 19. Rxh2 {[%clk 0:00:31.9]}
19... Ng3 {[%clk 0:01:49.1]} 20. fxg3 {[%clk 0:00:12.6]} 20... Bxd3 {[%clk
0:01:48.7]} 21. Bf4 {[%clk 0:00:12.9]} 21... Bxe2 {[%clk 0:01:47.7]} 22. Bxc7+
{[%clk 0:00:12.1]} 22... Kxc7 {[%clk 0:01:45.2]} 23. Re1 {[%clk 0:00:12.5]}
23... Rde8 {[%clk 0:01:41.5]} 24. c3 {[%clk 0:00:12.4]} 24... h5 {[%clk
0:01:38.8]} 25. Kd2 {[%clk 0:00:11.6]} 25... Bg4 {[%clk 0:01:38.3]} 26. Rhh1
{[%clk 0:00:10.9]} 26... Kd6 {[%clk 0:01:32.8]} 27. Bc4 {[%clk 0:00:09.7]} 27...
Rhf8 {[%clk 0:01:28.3]} 28. Rxe8 {[%clk 0:00:07.3]} 28... Rxe8 {[%clk
0:01:29.2]} 29. Rf1 {[%clk 0:00:06.7]} 29... a5 {[%clk 0:01:21]} 30. b3 {[%clk
0:00:06.1]} 30... c5 {[%clk 0:01:16.3]} 31. dxc5+ {[%clk 0:00:06]} 31... Kxc5
{[%clk 0:01:17.2]} 32. Rf7 {[%clk 0:00:05.9]} 32... Rd8+ {[%clk 0:01:15.7]} 33.
Kc1 {[%clk 0:00:04.8]} 33... g6 {[%clk 0:01:14.8]} 34. Rf6 {[%clk 0:00:04.2]}
34... Rd1+ {[%clk 0:01:13]} 35. Kc2 {[%clk 0:00:04.6]} 35... Rg1 {[%clk
0:01:13]} 36. Bd3 {[%clk 0:00:02.1]} 36... Rxg2+ {[%clk 0:01:12]} 37. Kb1 {[%clk
0:00:02.8]} 37... Rxg3 {[%clk 0:01:09.6]} 38. Bxg6 {[%clk 0:00:02.4]} 38... Rxc3
{[%clk 0:01:05.2]} 39. Bxh5 {[%clk 0:00:02.4]} 39... Bxh5 {[%clk 0:00:46.5]} 40.
Rf5+ {[%clk 0:00:02.6]} 40... Kb6 {[%clk 0:00:45.9]} 41. Rxh5 {[%clk 0:00:03.5]}
41... Rg3 {[%clk 0:00:44.1]} 42. Kb2 {[%clk 0:00:03.9]} 42... Rg4 {[%clk
0:00:41.5]} 43. Rh6+ {[%clk 0:00:03.6]} 43... Kb7 {[%clk 0:00:38.3]} 44. Rh5
{[%clk 0:00:04.5]} 44... a4 {[%clk 0:00:35.7]} 45. Ka3 {[%clk 0:00:04.1]} 45...
axb3 {[%clk 0:00:35.7]} 46. axb3 {[%clk 0:00:04.5]} 46... Rg8 {[%clk 0:00:35.6]}
47. Kb4 {[%clk 0:00:04.3]} 47... Kb8 {[%clk 0:00:36.5]} 48. Kb5 {[%clk
0:00:04.5]} 48... Rf8 {[%clk 0:00:37]} 49. Rd5 {[%clk 0:00:04.4]} 49... Rg8
{[%clk 0:00:37.4]} 50. Rf5 {[%clk 0:00:04.6]} 50... Re8 {[%clk 0:00:37.5]} 51.
b4 {[%clk 0:00:05]} 51... Rh8 {[%clk 0:00:37.3]} 52. Rg5 {[%clk 0:00:05.3]}
52... Rf8 {[%clk 0:00:36.9]} 53. Rd5 {[%clk 0:00:06]} 53... Rh8 {[%clk
0:00:37.1]} 54. Rg5 {[%clk 0:00:06.4]} 54... Rf8 {[%clk 0:00:37.3]} 55. Re5
{[%clk 0:00:07]} 55... Rh8 {[%clk 0:00:37.5]} 56. Rf5 {[%clk 0:00:07.7]} 56...
Rg8 {[%clk 0:00:37.6]} 57. Ka5 {[%clk 0:00:08.4]} 57... Rh8 {[%clk 0:00:37.8]}
58. b5 {[%clk 0:00:08.9]} 58... Rg8 {[%clk 0:00:38.2]} 59. Rf6 {[%clk 0:00:09]}
59... Rh8 {[%clk 0:00:38.5]} 60. Rb6+ {[%clk 0:00:09.3]} 60... Ka8 {[%clk
0:00:37.9]} 61. Ra6+ {[%clk 0:00:09.9]} 61... Kb8 {[%clk 0:00:38.3]} 62. Kb6
{[%clk 0:00:09.8]} 62... Rh6+ {[%clk 0:00:38]} 63. Ka5 {[%clk 0:00:10.2]} 63...
Rh8 {[%clk 0:00:37.3]} 64. Rd6 {[%clk 0:00:09.6]} 64... Rg8 {[%clk 0:00:37.3]}
65. Rd7 {[%clk 0:00:10]} 65... Rh8 {[%clk 0:00:37.6]} 66. Rf7 {[%clk 0:00:10.6]}
66... Rg8 {[%clk 0:00:37.9]} 67. Ka6 {[%clk 0:00:10.7]} 67... Rh8 {[%clk
0:00:38.4]} 68. Rb7+ {[%clk 0:00:10.6]} 68... Ka8 {[%clk 0:00:38.9]} 69. Ra7+
{[%clk 0:00:10.6]} 69... Kb8 {[%clk 0:00:39.2]} 70. Rd7 {[%clk 0:00:10]} 70...
Rh6+ {[%clk 0:00:38.5]} 71. Ka5 {[%clk 0:00:10.2]} 71... Rh8 {[%clk 0:00:39]}
72. Rd6 {[%clk 0:00:10]} 72... Rg8 {[%clk 0:00:39.2]} 73. Kb6 {[%clk 0:00:10.4]}
73... Rh8 {[%clk 0:00:39.3]} 74. Kc6 {[%clk 0:00:11]} 74... Rc8+ {[%clk
0:00:38.9]} 75. Kd7 {[%clk 0:00:11]} 75... Rh8 {[%clk 0:00:37.2]} 76. Rb6+
{[%clk 0:00:11.5]} 76... Ka7 {[%clk 0:00:35.1]} 77. Ra6+ {[%clk 0:00:11.5]}
77... Kb7 {[%clk 0:00:34.9]} 78. Re6 {[%clk 0:00:09.5]} 78... Rh5 {[%clk
0:00:33.4]} 79. b6 {[%clk 0:00:08.4]} 79... Rd5+ {[%clk 0:00:30.6]} 80. Rd6
{[%clk 0:00:08.3]} 80... Rxd6+ {[%clk 0:00:26.8]} 81. Kxd6 {[%clk 0:00:09.2]}
81... Kxb6 {[%clk 0:00:27.6]} 1/2-1/2

[Event "Late-Titled-Tuesday-Blitz-May-28-2024"]
[Site "Chess.com"]
[Date "2024.05.28"]
[Round "11"]
[White "brunoo2003"]
[Black "stollenmonster"]
[Result "1/2-1/2"]
[WhiteElo "2598"]
[BlackElo "2822"]
[TimeControl "180+1"]
[EndTime "16:06:53 PDT"]
[Termination "Game drawn - insufficient material"]

1. d4 {[%clk 0:02:47.4]} 1... Nf6 {[%clk 0:02:59.4]} 2. c4 {[%clk 0:02:47.1]}
2... e6 {[%clk 0:02:59.8]} 3. Nf3 {[%clk 0:02:45.7]} 3... d5 {[%clk 0:03:00.7]}
4. g3 {[%clk 0:02:45.6]} 4... Be7 {[%clk 0:03:00.6]} 5. Bg2 {[%clk 0:02:43.3]}
5... O-O {[%clk 0:03:01.2]} 6. O-O {[%clk 0:02:43]} 6... Ne4 {[%clk 0:03:01.8]}
7. Nc3 {[%clk 0:02:24.4]} 7... f5 {[%clk 0:03:02.2]} 8. Ne5 {[%clk 0:02:23.4]}
8... c6 {[%clk 0:03:02.5]} 9. f3 {[%clk 0:02:22.8]} 9... Nxc3 {[%clk 0:03:03.1]}
10. bxc3 {[%clk 0:02:23.2]} 10... Nd7 {[%clk 0:03:03.8]} 11. Nxd7 {[%clk
0:02:23.1]} 11... Bxd7 {[%clk 0:03:04.7]} 12. cxd5 {[%clk 0:02:22.7]} 12... cxd5
{[%clk 0:03:04.5]} 13. e4 {[%clk 0:02:23.2]} 13... fxe4 {[%clk 0:03:05.2]} 14.
fxe4 {[%clk 0:02:23.7]} 14... Rxf1+ {[%clk 0:03:05.8]} 15. Qxf1 {[%clk
0:02:22.8]} 15... Bc6 {[%clk 0:03:06.2]} 16. exd5 {[%clk 0:02:13.7]} 16... Bxd5
{[%clk 0:03:05]} 17. Bf4 {[%clk 0:02:08.3]} 17... Rc8 {[%clk 0:03:03.8]} 18. Qd3
{[%clk 0:01:54.3]} 18... Bf6 {[%clk 0:02:59.8]} 19. Re1 {[%clk 0:01:44.7]} 19...
Bxg2 {[%clk 0:02:50.2]} 20. Kxg2 {[%clk 0:01:45.6]} 20... Qd5+ {[%clk
0:02:50.3]} 21. Qe4 {[%clk 0:01:41.1]} 21... Qxa2+ {[%clk 0:02:49.9]} 22. Kh3
{[%clk 0:01:39.5]} 22... Qd5 {[%clk 0:02:50]} 23. Qxe6+ {[%clk 0:01:33.4]} 23...
Qxe6+ {[%clk 0:02:50.9]} 24. Rxe6 {[%clk 0:01:33.3]} 24... Rxc3 {[%clk
0:02:51.5]} 25. Re8+ {[%clk 0:01:33.8]} 25... Kf7 {[%clk 0:02:51]} 26. Rb8
{[%clk 0:01:33.6]} 26... Bxd4 {[%clk 0:02:43.1]} 27. Rxb7+ {[%clk 0:01:32.2]}
27... Ke6 {[%clk 0:02:43.6]} 28. Bb8 {[%clk 0:01:21.4]} 28... a5 {[%clk
0:02:39.8]} 29. Ba7 {[%clk 0:01:21.7]} 29... Bf6 {[%clk 0:02:34.6]} 30. Rb6+
{[%clk 0:01:19.9]} 30... Kd7 {[%clk 0:02:30.6]} 31. Ra6 {[%clk 0:01:20.1]} 31...
Ra3 {[%clk 0:02:27.1]} 32. Bc5 {[%clk 0:01:14.5]} 32... Ra2 {[%clk 0:02:25.8]}
33. Ra7+ {[%clk 0:01:13.8]} 33... Kc6 {[%clk 0:02:25.5]} 34. Bf8 {[%clk
0:01:14.2]} 34... Bd4 {[%clk 0:02:13.6]} 35. Rf7 {[%clk 0:01:03.4]} 35... Bg1
{[%clk 0:02:06.2]} 36. Bxg7 {[%clk 0:00:47]} 36... h5 {[%clk 0:01:59.9]} 37. Kh4
{[%clk 0:00:43.2]} 37... Rxh2+ {[%clk 0:01:57.4]} 38. Kg5 {[%clk 0:00:43.4]}
38... Be3+ {[%clk 0:01:47.7]} 39. Kg6 {[%clk 0:00:35.9]} 39... a4 {[%clk
0:01:39.5]} 40. Rf6+ {[%clk 0:00:31]} 40... Kb7 {[%clk 0:01:32]} 41. Rf3 {[%clk
0:00:29.6]} 41... Bc5 {[%clk 0:01:28.7]} 42. Rf5 {[%clk 0:00:29.2]} 42... Kc6
{[%clk 0:01:23.9]} 43. Rxh5 {[%clk 0:00:27.4]} 43... Rg2 {[%clk 0:00:59.1]} 44.
Be5 {[%clk 0:00:24.8]} 44... a3 {[%clk 0:00:56]} 45. Kf5 {[%clk 0:00:23.8]}
45... a2 {[%clk 0:00:50.2]} 46. Rh1 {[%clk 0:00:22.3]} 46... Kd5 {[%clk
0:00:45.4]} 47. Rd1+ {[%clk 0:00:19.1]} 47... Kc4 {[%clk 0:00:45.5]} 48. g4
{[%clk 0:00:19.4]} 48... Rf2+ {[%clk 0:00:45.5]} 49. Ke6 {[%clk 0:00:17.4]}
49... Re2 {[%clk 0:00:42.4]} 50. Kf5 {[%clk 0:00:16.7]} 50... Rf2+ {[%clk
0:00:29.3]} 51. Ke6 {[%clk 0:00:16.2]} 51... Be3 {[%clk 0:00:27.3]} 52. Rd8
{[%clk 0:00:12.6]} 52... Re2 {[%clk 0:00:16.3]} 53. Kf5 {[%clk 0:00:09.6]} 53...
Bd2 {[%clk 0:00:07.8]} 54. Ra8 {[%clk 0:00:09.1]} 54... Kb3 {[%clk 0:00:06]} 55.
Rb8+ {[%clk 0:00:08.6]} 55... Bb4 {[%clk 0:00:04.8]} 56. Ra8 {[%clk 0:00:08.8]}
56... Ba3 {[%clk 0:00:03.8]} 57. Bg7 {[%clk 0:00:07.7]} 57... Rf2+ {[%clk
0:00:03.7]} 58. Kg6 {[%clk 0:00:07.3]} 58... Rc2 {[%clk 0:00:03.8]} 59. g5
{[%clk 0:00:06.8]} 59... Rc6+ {[%clk 0:00:03.5]} 60. Kh5 {[%clk 0:00:06.8]}
60... Rc7 {[%clk 0:00:03.8]} 61. Bf6 {[%clk 0:00:06.1]} 61... Rc6 {[%clk
0:00:04.1]} 62. Bh8 {[%clk 0:00:05.9]} 62... Rc5 {[%clk 0:00:03.3]} 63. Kh6
{[%clk 0:00:04]} 63... Bb2 {[%clk 0:00:01.8]} 64. Bxb2 {[%clk 0:00:03]} 64...
Kxb2 {[%clk 0:00:02.7]} 65. g6 {[%clk 0:00:03.2]} 65... a1=Q {[%clk 0:00:03.2]}
66. Rxa1 {[%clk 0:00:02.9]} 66... Kxa1 {[%clk 0:00:04.1]} 67. g7 {[%clk
0:00:03.3]} 67... Rc6+ {[%clk 0:00:04.3]} 68. Kh7 {[%clk 0:00:04]} 68... Rc8
{[%clk 0:00:04.8]} 69. g8=Q {[%clk 0:00:04]} 69... Rxg8 {[%clk 0:00:05.5]} 70.
Kxg8 {[%clk 0:00:04.7]} 1/2-1/2

[Event "Late-Titled-Tuesday-Blitz-May-28-2024"]
[Site "Chess.com"]
[Date "2024.05.28"]
[Round "11"]
[White "rionelG"]
[Black "protectiago"]
[Result "1-0"]
[WhiteElo "2291"]
[BlackElo "2122"]
[TimeControl "180+1"]
[EndTime "16:07:09 PDT"]
[Termination "rionelG won by resignation"]

1. e4 {[%clk 0:02:50]} 1... e5 {[%clk 0:02:59.2]} 2. Nf3 {[%clk 0:02:49.2]} 2...
Nc6 {[%clk 0:02:58.9]} 3. Bb5 {[%clk 0:02:49.8]} 3... a6 {[%clk 0:02:59]} 4. Ba4
{[%clk 0:02:50.3]} 4... Nf6 {[%clk 0:02:59.5]} 5. O-O {[%clk 0:02:50.7]} 5...
Nxe4 {[%clk 0:02:59.9]} 6. d4 {[%clk 0:02:49.5]} 6... b5 {[%clk 0:03:00]} 7. Bb3
{[%clk 0:02:49.6]} 7... d5 {[%clk 0:03:00.6]} 8. dxe5 {[%clk 0:02:48.8]} 8...
Be6 {[%clk 0:03:01.2]} 9. c3 {[%clk 0:02:48.9]} 9... Bc5 {[%clk 0:03:00.8]} 10.
Nbd2 {[%clk 0:02:46.1]} 10... O-O {[%clk 0:03:00.7]} 11. Bc2 {[%clk 0:02:41.5]}
11... Bf5 {[%clk 0:03:00.7]} 12. Nb3 {[%clk 0:02:27.4]} 12... Bg6 {[%clk
0:03:00.5]} 13. Nxc5 {[%clk 0:02:22.1]} 13... Nxc5 {[%clk 0:02:59.5]} 14. Bxg6
{[%clk 0:02:22.3]} 14... hxg6 {[%clk 0:02:59.3]} 15. Bg5 {[%clk 0:02:17.1]}
15... Qd7 {[%clk 0:02:55.3]} 16. Re1 {[%clk 0:02:13.6]} 16... Ne6 {[%clk
0:02:55.1]} 17. Be3 {[%clk 0:02:06.8]} 17... Ne7 {[%clk 0:02:53.2]} 18. Qd2
{[%clk 0:01:59.8]} 18... c5 {[%clk 0:02:50.8]} 19. Rad1 {[%clk 0:02:00]} 19...
Rfd8 {[%clk 0:02:50.5]} 20. b4 {[%clk 0:01:57]} 20... Rac8 {[%clk 0:02:08.4]}
21. Qb2 {[%clk 0:01:16.9]} 21... Nf5 {[%clk 0:02:06.5]} 22. a3 {[%clk
0:00:56.9]} 22... Nxe3 {[%clk 0:02:04.7]} 23. Rxe3 {[%clk 0:00:56.8]} 23... Qc6
{[%clk 0:01:53]} 24. Red3 {[%clk 0:00:48.4]} 24... g5 {[%clk 0:01:37.7]} 25. Qa2
{[%clk 0:00:39.1]} 25... Nf4 {[%clk 0:01:35.1]} 26. R3d2 {[%clk 0:00:33.1]}
26... g4 {[%clk 0:01:34.7]} 27. Nh4 {[%clk 0:00:30]} 27... d4 {[%clk 0:01:30.6]}
28. cxd4 {[%clk 0:00:26.1]} 28... cxd4 {[%clk 0:01:29.1]} 29. f3 {[%clk
0:00:17.7]} 29... d3 {[%clk 0:01:03.3]} 30. Nf5 {[%clk 0:00:16.3]} 30... Qb6+
{[%clk 0:00:50.6]} 31. Kh1 {[%clk 0:00:15.7]} 31... Kf8 {[%clk 0:00:32.8]} 32.
fxg4 {[%clk 0:00:12.7]} 32... Qg6 {[%clk 0:00:20.9]} 33. Ne3 {[%clk 0:00:10.6]}
33... Qe4 {[%clk 0:00:19.5]} 34. Nf5 {[%clk 0:00:07.6]} 34... Qxe5 {[%clk
0:00:15.5]} 35. Qb2 {[%clk 0:00:07.5]} 35... Qxb2 {[%clk 0:00:15]} 36. Rxb2
{[%clk 0:00:07.4]} 36... d2 {[%clk 0:00:13.9]} 37. Rbb1 {[%clk 0:00:03]} 37...
g6 {[%clk 0:00:09.4]} 38. Ne3 {[%clk 0:00:02.6]} 38... Rc3 {[%clk 0:00:08.1]}
39. Nf1 {[%clk 0:00:02.7]} 39... Rcd3 {[%clk 0:00:07.6]} 40. Rb2 {[%clk
0:00:03.1]} 40... Ne6 {[%clk 0:00:04.5]} 41. Rbxd2 {[%clk 0:00:03.1]} 41... Rxd2
{[%clk 0:00:04.3]} 42. Rxd2 {[%clk 0:00:04]} 42... Rxd2 {[%clk 0:00:02.2]} 43.
Nxd2 {[%clk 0:00:04.9]} 43... Nd4 {[%clk 0:00:02.7]} 44. Kg1 {[%clk 0:00:02.2]}
44... Nc2 {[%clk 0:00:03.6]} 45. Nb1 {[%clk 0:00:02.3]} 45... Ke7 {[%clk
0:00:02.9]} 46. Kf2 {[%clk 0:00:03]} 46... Kd6 {[%clk 0:00:03.5]} 47. Ke2 {[%clk
0:00:03.5]} 47... Kd5 {[%clk 0:00:04]} 48. Kd3 {[%clk 0:00:04.1]} 48... Nd4
{[%clk 0:00:03.4]} 49. Ke3 {[%clk 0:00:04.1]} 49... Ne6 {[%clk 0:00:03.6]} 50.
Kf3 {[%clk 0:00:04.1]} 50... Kc4 {[%clk 0:00:04.2]} 51. h4 {[%clk 0:00:03.7]}
51... Kb3 {[%clk 0:00:04.5]} 52. h5 {[%clk 0:00:03.8]} 52... gxh5 {[%clk
0:00:04.9]} 53. gxh5 {[%clk 0:00:03.7]} 53... Kb2 {[%clk 0:00:04.7]} 54. Nd2
{[%clk 0:00:04.1]} 54... Kxa3 {[%clk 0:00:05]} 55. h6 {[%clk 0:00:02.7]} 55...
Ng5+ {[%clk 0:00:02.4]} 56. Kf4 {[%clk 0:00:03.3]} 56... Nh7 {[%clk 0:00:03.1]}
57. Ne4 {[%clk 0:00:02.4]} 57... Kxb4 {[%clk 0:00:03.4]} 58. Ng5 {[%clk
0:00:02.9]} 58... Nf6 {[%clk 0:00:02]} 59. Kf5 {[%clk 0:00:01]} 59... Nh7 {[%clk
0:00:00.9]} 60. Nxh7 {[%clk 0:00:01]} 60... a5 {[%clk 0:00:01.8]} 61. Nf6 {[%clk
0:00:01.8]} 61... a4 {[%clk 0:00:02.7]} 62. Nd5+ {[%clk 0:00:01.6]} 62... Kb3
{[%clk 0:00:02]} 63. h7 {[%clk 0:00:01]} 63... a3 {[%clk 0:00:02.9]} 64. h8=Q
{[%clk 0:00:01.1]} 64... a2 {[%clk 0:00:03.8]} 65. Qa1 {[%clk 0:00:01.4]} 65...
Ka3 {[%clk 0:00:04.7]} 66. Nc3 {[%clk 0:00:01.3]} 66... b4 {[%clk 0:00:05.6]}
67. Nxa2 {[%clk 0:00:01.4]} 67... b3 {[%clk 0:00:05.5]} 68. Nc3+ {[%clk
0:00:02]} 68... Kb4 {[%clk 0:00:05.7]} 69. Qb2 {[%clk 0:00:02.2]} 69... Kc4
{[%clk 0:00:05.8]} 70. Ke4 {[%clk 0:00:03.1]} 70... Kb4 {[%clk 0:00:05.9]} 71.
Kd4 {[%clk 0:00:04]} 71... f5 {[%clk 0:00:06.2]} 72. g3 {[%clk 0:00:03.8]} 72...
f4 {[%clk 0:00:06.4]} 73. gxf4 {[%clk 0:00:04.7]} 73... Ka5 {[%clk 0:00:06.2]}
74. Kc4 {[%clk 0:00:04.5]} 74... Ka6 {[%clk 0:00:06.4]} 75. Qxb3 {[%clk
0:00:05.1]} 75... Ka7 {[%clk 0:00:07.3]} 76. Kc5 {[%clk 0:00:05.6]} 76... Ka8
{[%clk 0:00:08.2]} 77. Kc6 {[%clk 0:00:06.3]} 77... Ka7 {[%clk 0:00:08.5]} 78.
f5 {[%clk 0:00:06.8]} 1-0

[Event "Late-Titled-Tuesday-Blitz-May-28-2024"]
[Site "Chess.com"]
[Date "2024.05.28"]
[Round "11"]
[White "andrew-blr"]
[Black "MeisterJabo"]
[Result "1-0"]
[WhiteElo "2648"]
[BlackElo "2502"]
[TimeControl "180+1"]
[EndTime "16:07:19 PDT"]
[Termination "andrew-blr won by checkmate"]

1. d4 {[%clk 0:03:00.9]} 1... Nf6 {[%clk 0:02:55.1]} 2. c4 {[%clk 0:02:59.9]}
2... e6 {[%clk 0:02:55.3]} 3. Nc3 {[%clk 0:02:59]} 3... d5 {[%clk 0:02:55.8]} 4.
cxd5 {[%clk 0:02:58.4]} 4... exd5 {[%clk 0:02:56.7]} 5. Bg5 {[%clk 0:02:58.2]}
5... Be7 {[%clk 0:02:48.7]} 6. e3 {[%clk 0:02:57.9]} 6... c6 {[%clk 0:02:49.3]}
7. Bd3 {[%clk 0:02:57.6]} 7... h6 {[%clk 0:02:49.3]} 8. Bh4 {[%clk 0:02:57.4]}
8... O-O {[%clk 0:02:49.6]} 9. Qc2 {[%clk 0:02:57.1]} 9... Re8 {[%clk
0:02:49.8]} 10. Nge2 {[%clk 0:02:55.7]} 10... Nbd7 {[%clk 0:02:50.2]} 11. O-O
{[%clk 0:02:54.9]} 11... Ne4 {[%clk 0:02:50.8]} 12. Bxe7 {[%clk 0:02:48.8]}
12... Qxe7 {[%clk 0:02:51.7]} 13. Rae1 {[%clk 0:02:47.3]} 13... b5 {[%clk
0:02:49]} 14. f3 {[%clk 0:02:44.1]} 14... Nxc3 {[%clk 0:02:46.8]} 15. Nxc3
{[%clk 0:02:43.1]} 15... b4 {[%clk 0:02:47.3]} 16. Na4 {[%clk 0:02:39.6]} 16...
Qd6 {[%clk 0:02:44.8]} 17. Bh7+ {[%clk 0:02:36]} 17... Kh8 {[%clk 0:02:44.1]}
18. Bf5 {[%clk 0:02:35.9]} 18... Nb6 {[%clk 0:02:41.4]} 19. Nc5 {[%clk
0:02:31.5]} 19... Nc4 {[%clk 0:02:38.9]} 20. Bxc8 {[%clk 0:02:23.5]} 20... Raxc8
{[%clk 0:02:38.4]} 21. Qf2 {[%clk 0:02:20.4]} 21... f5 {[%clk 0:02:21.8]} 22.
Nd3 {[%clk 0:02:16.4]} 22... g5 {[%clk 0:01:57.4]} 23. b3 {[%clk 0:02:13.2]}
23... Nb6 {[%clk 0:01:56.5]} 24. Ne5 {[%clk 0:02:13]} 24... Kg7 {[%clk
0:01:56.2]} 25. f4 {[%clk 0:02:13]} 25... g4 {[%clk 0:01:55.5]} 26. Rc1 {[%clk
0:02:05.3]} 26... Nd7 {[%clk 0:01:54.1]} 27. Qh4 {[%clk 0:01:56.5]} 27... Qf6
{[%clk 0:01:38.4]} 28. Qf2 {[%clk 0:01:44]} 28... Qd6 {[%clk 0:01:33.2]} 29. Rc2
{[%clk 0:01:43.3]} 29... c5 {[%clk 0:01:21.7]} 30. Rfc1 {[%clk 0:01:40]} 30...
c4 {[%clk 0:01:17.1]} 31. bxc4 {[%clk 0:01:36.1]} 31... dxc4 {[%clk 0:01:16.9]}
32. Rxc4 {[%clk 0:01:36.1]} 32... Rxc4 {[%clk 0:01:17.4]} 33. Rxc4 {[%clk
0:01:36]} 33... Nxe5 {[%clk 0:01:17.8]} 34. fxe5 {[%clk 0:01:35.9]} 34... Qe6
{[%clk 0:01:13.3]} 35. Qc2 {[%clk 0:01:23.9]} 35... a5 {[%clk 0:01:10.1]} 36.
Rc6 {[%clk 0:01:18.8]} 36... Qf7 {[%clk 0:01:07.9]} 37. Rc7 {[%clk 0:01:13.7]}
37... Re7 {[%clk 0:01:07.4]} 38. Rxe7 {[%clk 0:01:12.6]} 38... Qxe7 {[%clk
0:01:08.3]} 39. Qxf5 {[%clk 0:01:12.5]} 39... Qc7 {[%clk 0:01:03.8]} 40. Qxg4+
{[%clk 0:01:04]} 40... Kh8 {[%clk 0:01:04.3]} 41. Qf4 {[%clk 0:00:54.5]} 41...
a4 {[%clk 0:00:44.1]} 42. Qxh6+ {[%clk 0:00:48.8]} 42... Kg8 {[%clk 0:00:39.6]}
43. e6 {[%clk 0:00:46.8]} 43... b3 {[%clk 0:00:20.7]} 44. axb3 {[%clk
0:00:46.2]} 44... a3 {[%clk 0:00:20.9]} 45. Qg5+ {[%clk 0:00:42.5]} 45... Kf8
{[%clk 0:00:13]} 46. Qf5+ {[%clk 0:00:39.6]} 46... Kg8 {[%clk 0:00:09.2]} 47.
Qd5 {[%clk 0:00:28.2]} 47... Qc1+ {[%clk 0:00:04.2]} 48. Kf2 {[%clk 0:00:27.9]}
48... Qd2+ {[%clk 0:00:05.1]} 49. Kf3 {[%clk 0:00:27.2]} 49... Qd1+ {[%clk
0:00:05.6]} 50. Kf4 {[%clk 0:00:23.5]} 50... Qf1+ {[%clk 0:00:03.7]} 51. Kg3
{[%clk 0:00:21.5]} 51... Qe1+ {[%clk 0:00:03.3]} 52. Kf3 {[%clk 0:00:16.5]}
52... Qf1+ {[%clk 0:00:03.5]} 53. Kg4 {[%clk 0:00:16.1]} 53... Qe2+ {[%clk
0:00:03.9]} 54. Kg5 {[%clk 0:00:15.4]} 54... Qxe3+ {[%clk 0:00:04]} 55. Kf6
{[%clk 0:00:15.9]} 55... Qf4+ {[%clk 0:00:04.1]} 56. Ke7 {[%clk 0:00:15.9]}
56... a2 {[%clk 0:00:01.7]} 57. Qa8+ {[%clk 0:00:15.4]} 57... Kg7 {[%clk
0:00:02.6]} 58. Qxa2 {[%clk 0:00:15.4]} 58... Qxd4 {[%clk 0:00:01.2]} 59. Qe2
{[%clk 0:00:10.8]} 59... Qa7+ {[%clk 0:00:00.9]} 60. Kd6 {[%clk 0:00:10.4]}
60... Qb6+ {[%clk 0:00:01.8]} 61. Ke5 {[%clk 0:00:10.3]} 61... Qc5+ {[%clk
0:00:02]} 62. Kf4 {[%clk 0:00:10]} 62... Qd4+ {[%clk 0:00:02.4]} 63. Qe4 {[%clk
0:00:09.7]} 63... Qd2+ {[%clk 0:00:03]} 64. Kf5 {[%clk 0:00:09.3]} 64... Qf2+
{[%clk 0:00:02.6]} 65. Qf4 {[%clk 0:00:09.7]} 65... Qc2+ {[%clk 0:00:01.6]} 66.
Qe4 {[%clk 0:00:09.2]} 66... Qxb3 {[%clk 0:00:01.8]} 67. e7 {[%clk 0:00:08.9]}
67... Qb5+ {[%clk 0:00:02.3]} 68. Qe5+ {[%clk 0:00:08.8]} 68... Qxe5+ {[%clk
0:00:02.9]} 69. Kxe5 {[%clk 0:00:09.7]} 69... Kf7 {[%clk 0:00:03.6]} 70. h4
{[%clk 0:00:10.5]} 70... Kxe7 {[%clk 0:00:04]} 71. Kf5 {[%clk 0:00:11.4]} 71...
Kf7 {[%clk 0:00:04.9]} 72. g4 {[%clk 0:00:11.6]} 72... Kg7 {[%clk 0:00:05.8]}
73. g5 {[%clk 0:00:12.1]} 73... Kh7 {[%clk 0:00:06.7]} 74. g6+ {[%clk
0:00:12.4]} 74... Kh6 {[%clk 0:00:07.6]} 75. Kf6 {[%clk 0:00:12.5]} 75... Kh5
{[%clk 0:00:06]} 76. g7 {[%clk 0:00:13.4]} 76... Kh6 {[%clk 0:00:06.9]} 77. g8=Q
{[%clk 0:00:13.2]} 77... Kh5 {[%clk 0:00:07.3]} 78. Qg5# {[%clk 0:00:14.1]} 1-0